Workbook

Sheet UserInput
B1: Version 2.01 | C1: LOSS SNAPSHOT: | D1: Loss at 5GHz: | E1: =CONCATENATE(" ",ROUND(U60,2)," dB") -> 0.28 dB | I1: Loss at 12.75GHz: | J1: =CONCATENATE(" ",ROUND(U91,2)," dB") -> 0.63 dB | N1: Loss at 14GHz: | O1: =CONCATENATE(" ",ROUND(U96,2)," dB") -> 0.68 dB
B2: Backplane/Trace Material | H2: Linecard A Material | N2: Linecard B Material
B3: Length (inch) | D3: 1 | F3: =IF(AND(J3=0,P3=0),"no connector included",CONCATENATE("2 connectors - loss at each - ",ROUND(T60,3),"dB loss at 5G - ",ROUND(T91,3),"dB loss at 12.75G - ",ROUND(T96,3),"dB loss at 14G")) -> no connector included | H3: Length (inch) | J3: 0 | N3: Length (inch) | P3: 0
B4: Trace Width (mil) | D4: 8 | H4: Trace Width (mil) | N4: Trace Width (mil)
B5: Cu Thickness (mil) | D5: 0.6 | H5: Cu Thickness (mil) | N5: Cu Thickness (mil)
B6: Diel. Thickness (mil) | D6: 16 | H6: Diel. Thickness (mil) | N6: Diel. Thickness (mil)
B7: Freq | C7: Dk | D7: Df | H7: Freq | I7: Dk | J7: Df | N7: Freq | O7: Dk | P7: Df
B8: 100000000 | C8: 3.67 | D8: 0.0039 | H8: 100000000 | N8: 100000000
B9: 1000000000 | C9: 3.65 | D9: 0.004 | H9: 1000000000 | N9: 1000000000
B10: 2000000000 | C10: 3.59 | D10: 0.0043 | H10: 2000000000 | N10: 2000000000
B11: 5000000000 | C11: 3.576 | D11: 0.0049 | H11: 5000000000 | N11: 5000000000
B12: 10000000000 | C12: 3.3494 | D12: 0.0055 | H12: 10000000000 | N12: 10000000000
B13: 20000000000 | C13: 3 | D13: 0.0065 | H13: 20000000000 | N13: 20000000000
B14: Low Roughness | C14: 20 | D14: 6.000000212e-07
B29: DK fit to Second Order Equation | C29: c2 | D29: =INDEX(LINEST(C8:C13,B8:B13^{1,2}),1) -> -3.845822295e-22 | H29: DK fit to Second Order Equation | I29: c2 | J29: =IF($J$3=0,"n/a", INDEX(LINEST(I8:I13,H8:H13^{1,2}),1)) -> n/a | N29: DK fit to Second Order Equation | O29: c2 | P29: =IF($P$3=0,"n/a", INDEX(LINEST(O8:O13,N8:N13^{1,2}),1) ) -> n/a
C30: c1 | D30: =INDEX(LINEST(C8:C13,B8:B13^{1,2}),1,2) -> -2.60881765e-11 | I30: c1 | J30: =IF($J$3=0,"n/a", INDEX(LINEST(I8:I13,H8:H13^{1,2}),1,2)) -> n/a | O30: c1 | P30: =IF($P$3=0,"n/a", INDEX(LINEST(O8:O13,N8:N13^{1,2}),1,2) ) -> n/a
C31: b | D31: =INDEX(LINEST(C8:C13,B8:B13^{1,2}),1,3) -> 3.672198659 | I31: b | J31: =IF($J$3=0,"n/a", INDEX(LINEST(I8:I13,H8:H13^{1,2}),1,3)) -> n/a | O31: b | P31: =IF($P$3=0,"n/a", INDEX(LINEST(O8:O13,N8:N13^{1,2}),1,3) ) -> n/a
B32: Df fit to Second Order Equation | C32: c2 | D32: =INDEX(LINEST(D8:D13,B8:B13^{1,2}),1) -> -3.826107003e-24 | H32: Df fit to Second Order Equation | I32: c2 | J32: =IF($J$3=0,"n/a", INDEX(LINEST(J8:J13,H8:H13^{1,2}),1)) -> n/a | N32: Df fit to Second Order Equation | O32: c2 | P32: =IF($P$3=0,"n/a", INDEX(LINEST(P8:P13,N8:N13^{1,2}),1) ) -> n/a
C33: c1 | D33: =INDEX(LINEST(D8:D13,B8:B13^{1,2}),1,2) -> 2.075003354e-13 | I33: c1 | J33: =IF($J$3=0,"n/a", INDEX(LINEST(J8:J13,H8:H13^{1,2}),1,2) ) -> n/a | O33: c1 | P33: =IF($P$3=0,"n/a", INDEX(LINEST(P8:P13,N8:N13^{1,2}),1,2) ) -> n/a
C34: b | D34: =INDEX(LINEST(D8:D13,B8:B13^{1,2}),1,3) -> 0.003870352032 | I34: b | J34: =IF($J$3=0,"n/a", INDEX(LINEST(J8:J13,H8:H13^{1,2}),1,3) ) -> n/a | O34: b | P34: =IF($P$3=0,"n/a", INDEX(LINEST(P8:P13,N8:N13^{1,2}),1,3) ) -> n/a
A35: δ (m) | B35: Zo | C35: Dk | D35: Df | E35: αcond | F35: αdiel | G35: Ksnowballs | H35: Zo | I35: Dk | J35: Df | K35: αcond | L35: αdiel | M35: Ksnowballs | N35: Zo | O35: Dk | P35: Df | Q35: αcond | R35: αdiel | S35: Ksnowballs | T35: Conn. Loss | U35: Atotal (dB) | V35: Frequency (GHz)
A36: =SQRT(1/(PI()*56900000*0.00000125663))*SQRT(1/($V36*1000000000)) -> 2.109916258e-05 | B36: =94.15/( SQRT($C36)*( (($D$4/$D$6)/(1-$D$5/$D$6)) + ((((2/(1-$D$5/$D$6))*LN((1/(1-$D$5/$D$6))+1))-(((1/(1-$D$5/$D$6))-1)*LN((1/((1-$D$5/$D$6)^2))-1)))/PI() ) ) ) -> 48.06984334 | C36: =$D$29*(V36*10^9)^2 + $D$30*(V36*10^9) + $D$31 -> 3.671937738 | D36: =$D$32*(V36*10^9)^2 + $D$33*(V36*10^9) + $D$34 -> 0.003872426653 | E36: =IF( 1/(SQRT(PI()*(4*PI()*10^-7*0.999994)*59600000*$V36*10^9)) >= $D$5*0.0000254, (20*LOG(EXP(1))/2) * ((1/59600000)*39.3700787/($D$5*0.001)*(1/(0.001*$D$4)+1/(6*0.001*($D$6-$D$5)/2))) * (1/$B36), (20*LOG(EXP(1))/2) * ((SQRT(PI()*(4*PI()*10^-7*0.999994)/59600000)*SQRT($V36*10^9)*(1/(0.001*$D$4)+1/(6*0.001*($D$6-$D$5)/2))))/2 * (1/$B36) ) -> 0.01458638597 | F36: =( (20*LOG(EXP(1))/2) * 2*PI()*$V36*10^9 * $D36 *SQRT($C36) ) / (299792458*39.3700787 ) -> 0.0001715568442 | G36: =1 + ((3/2)*($C$14)*4*PI()*($D$14)^2)/(0.0000094*0.00000814)/(1+$A36/$D$14+$A36^2/2/($D$14)^2) -> 1.002710167 | H36: =IF($J$3=0,"n/a", 94.15/( SQRT($I36)*( (($J$4/$J$6)/(1-$J$5/$J$6)) + ((((2/(1-$J$5/$J$6))*LN((1/(1-$J$5/$J$6))+1))-(((1/(1-$J$5/$J$6))-1)*LN((1/((1-$J$5/$J$6)^2))-1)))/PI() ) ) )) -> n/a | I36: =IF($J$3=0,"n/a", $J$29*(V36*10^9)^2 + $J$30*(V36*10^9) + $J$31) -> n/a | J36: =IF($J$3=0,"n/a", $J$32*(V36*10^9)^2 + $J$33*(V36*10^9) + $J$34) -> n/a | K36: =IF($J$3=0,"n/a", IF( 1/(SQRT(PI()*(4*PI()*10^-7*0.999994)*59600000*$V36*10^9)) >= $J$5*0.0000254, (20*LOG(EXP(1))/2) * ((1/59600000)*39.3700787/($J$5*0.001)*(1/(0.001*$J$4)+1/(6*0.001*($J$6-$J$5)/2))) * (1/$H36), (20*LOG(EXP(1))/2) * ((SQRT(PI()*(4*PI()*10^-7*0.999994)/59600000)*SQRT($V36*10^9)*(1/(0.001*$J$4)+1/(6*0.001*($J$6-$J$5)/2))))/2 * (1/$H36) )) -> n/a | L36: =IF($J$3=0,"n/a", ( (20*LOG(EXP(1))/2) * 2*PI()*$V36*10^9 * $J36 *SQRT($I36) ) / (299792458*39.3700787 )) -> n/a | M36: =IF($J$3=0,"n/a", 1 + ((3/2)*($I$14*$J$4*0.001*0.0000254*0.0254/0.0000094/0.00000814)*4*PI()*(0.0000005)^2)/($J$4*0.001*0.0000254*0.0254)/(1+$A36/$J$14+$A36^2/2/($J$14)^2)) -> n/a | N36: =IF($P$3=0,"n/a", 94.15/( SQRT($O36)*( (($P$4/$P$6)/(1-$P$5/$P$6)) + ((((2/(1-$P$5/$P$6))*LN((1/(1-$P$5/$P$6))+1))-(((1/(1-$P$5/$P$6))-1)*LN((1/((1-$P$5/$P$6)^2))-1)))/PI() ) ) ) ) -> n/a | O36: =IF($P$3=0,"n/a", $P$29*(V36*10^9)^2 + $P$30*(V36*10^9) + $P$31 ) -> n/a | P36: =IF($P$3=0,"n/a", $P$32*(V36*10^9)^2 + $P$33*(V36*10^9) + $P$34 ) -> n/a | Q36: =IF($P$3=0,"n/a", IF( 1/(SQRT(PI()*(4*PI()*10^-7*0.999994)*59600000*$V36*10^9)) >= $P$5*0.0000254, (20*LOG(EXP(1))/2) * ((1/59600000)*39.3700787/($P$5*0.001)*(1/(0.001*$P$4)+1/(6*0.001*($P$6-$P$5)/2))) * (1/$N36), (20*LOG(EXP(1))/2) * ((SQRT(PI()*(4*PI()*10^-7*0.999994)/59600000)*SQRT($V36*10^9)*(1/(0.001*$P$4)+1/(6*0.001*($P$6-$P$5)/2))))/2 * (1/$N36) )) -> n/a | R36: =IF($P$3=0,"n/a", ( (20*LOG(EXP(1))/2) * 2*PI()*$V36*10^9 * $P36 *SQRT($O36) ) / (299792458*39.3700787 ) ) -> n/a | S36: =IF($P$3=0,"n/a", 1 + ((3/2)*($O$14*$P$4*0.001*0.0000254*0.0254/0.0000094/0.00000814)*4*PI()*(0.0000005)^2)/($P$4*0.001*0.0000254*0.0254)/(1+$A36/$P$14+$A36^2/2/($P$14)^2) ) -> n/a | T36: =IF(AND($J$3=0, P$3=0), 0, 0.000009*SQRT($V36*1000000000)-0.000000000012*($V36*1000000000)+1.6E-21*($V36*1000000000)^2) -> 0 | U36: =F36*$D$3 + E36*G36*$D$3 + $T36 + IF(OR(K36="n/a",L36="n/a",M36="n/a"),0, L36*$D$3 + K36*M36*$J$3) + $T36 + IF(OR(Q36="n/a",R36="n/a",S36="n/a"),0,R36*$D$3 + Q36*S36*$P$3) -> 0.01479747436 | V36: 0.01
A37: =SQRT(1/(PI()*56900000*0.00000125663))*SQRT(1/($V37*1000000000)) -> 9.435832361e-06 | B37: =94.15/( SQRT($C37)*( (($D$4/$D$6)/(1-$D$5/$D$6)) + ((((2/(1-$D$5/$D$6))*LN((1/(1-$D$5/$D$6))+1))-(((1/(1-$D$5/$D$6))-1)*LN((1/((1-$D$5/$D$6)^2))-1)))/PI() ) ) ) -> 48.07668132 | C37: 3.670893288 | D37: 0.003880717484 | E37: =IF( 1/(SQRT(PI()*(4*PI()*10^-7*0.999994)*59600000*$V37*10^9)) >= $D$5*0.0000254, (20*LOG(EXP(1))/2) * ((1/59600000)*39.3700787/($D$5*0.001)*(1/(0.001*$D$4)+1/(6*0.001*($D$6-$D$5)/2))) * (1/$B37), (20*LOG(EXP(1))/2) * ((SQRT(PI()*(4*PI()*10^-7*0.999994)/59600000)*SQRT($V37*10^9)*(1/(0.001*$D$4)+1/(6*0.001*($D$6-$D$5)/2))))/2 * (1/$B37) ) -> 0.01205390033 | F37: 0.0008594984649 | G37: =1 + ((3/2)*($C$14)*4*PI()*($D$14)^2)/(0.0000094*0.00000814)/(1+$A37/$D$14+$A37^2/2/($D$14)^2) -> 1.012634486 | H37: =IF($J$3=0,"n/a", 94.15/( SQRT($I37)*( (($J$4/$J$6)/(1-$J$5/$J$6)) + ((((2/(1-$J$5/$J$6))*LN((1/(1-$J$5/$J$6))+1))-(((1/(1-$J$5/$J$6))-1)*LN((1/((1-$J$5/$J$6)^2))-1)))/PI() ) ) )) -> n/a | I37: =IF($J$3=0,"n/a", $J$29*(V37*10^9)^2 + $J$30*(V37*10^9) + $J$31) -> n/a | J37: =IF($J$3=0,"n/a", $J$32*(V37*10^9)^2 + $J$33*(V37*10^9) + $J$34) -> n/a | K37: =IF($J$3=0,"n/a", IF( 1/(SQRT(PI()*(4*PI()*10^-7*0.999994)*59600000*$V37*10^9)) >= $J$5*0.0000254, (20*LOG(EXP(1))/2) * ((1/59600000)*39.3700787/($J$5*0.001)*(1/(0.001*$J$4)+1/(6*0.001*($J$6-$J$5)/2))) * (1/$H37), (20*LOG(EXP(1))/2) * ((SQRT(PI()*(4*PI()*10^-7*0.999994)/59600000)*SQRT($V37*10^9)*(1/(0.001*$J$4)+1/(6*0.001*($J$6-$J$5)/2))))/2 * (1/$H37) )) -> n/a | L37: =IF($J$3=0,"n/a", ( (20*LOG(EXP(1))/2) * 2*PI()*$V37*10^9 * $J37 *SQRT($I37) ) / (299792458*39.3700787 )) -> n/a | M37: =IF($J$3=0,"n/a", 1 + ((3/2)*($I$14*$J$4*0.001*0.0000254*0.0254/0.0000094/0.00000814)*4*PI()*(0.0000005)^2)/($J$4*0.001*0.0000254*0.0254)/(1+$A37/$J$14+$A37^2/2/($J$14)^2)) -> n/a | N37: =IF($P$3=0,"n/a", 94.15/( SQRT($O37)*( (($P$4/$P$6)/(1-$P$5/$P$6)) + ((((2/(1-$P$5/$P$6))*LN((1/(1-$P$5/$P$6))+1))-(((1/(1-$P$5/$P$6))-1)*LN((1/((1-$P$5/$P$6)^2))-1)))/PI() ) ) ) ) -> n/a | O37: =IF($P$3=0,"n/a", $P$29*(V37*10^9)^2 + $P$30*(V37*10^9) + $P$31 ) -> n/a | P37: =IF($P$3=0,"n/a", $P$32*(V37*10^9)^2 + $P$33*(V37*10^9) + $P$34 ) -> n/a | Q37: =IF($P$3=0,"n/a", IF( 1/(SQRT(PI()*(4*PI()*10^-7*0.999994)*59600000*$V37*10^9)) >= $P$5*0.0000254, (20*LOG(EXP(1))/2) * ((1/59600000)*39.3700787/($P$5*0.001)*(1/(0.001*$P$4)+1/(6*0.001*($P$6-$P$5)/2))) * (1/$N37), (20*LOG(EXP(1))/2) * ((SQRT(PI()*(4*PI()*10^-7*0.999994)/59600000)*SQRT($V37*10^9)*(1/(0.001*$P$4)+1/(6*0.001*($P$6-$P$5)/2))))/2 * (1/$N37) )) -> n/a | R37: =IF($P$3=0,"n/a", ( (20*LOG(EXP(1))/2) * 2*PI()*$V37*10^9 * $P37 *SQRT($O37) ) / (299792458*39.3700787 ) ) -> n/a | S37: =IF($P$3=0,"n/a", 1 + ((3/2)*($O$14*$P$4*0.001*0.0000254*0.0254/0.0000094/0.00000814)*4*PI()*(0.0000005)^2)/($P$4*0.001*0.0000254*0.0254)/(1+$A37/$P$14+$A37^2/2/($P$14)^2) ) -> n/a | T37: =IF(AND($J$3=0, P$3=0), 0, 0.000009*SQRT($V37*1000000000)-0.000000000012*($V37*1000000000)+1.6E-21*($V37*1000000000)^2) -> 0 | U37: =F37*$D$3 + E37*G37*$D$3 + $T37 + IF(OR(K37="n/a",L37="n/a",M37="n/a"),0, L37*$D$3 + K37*M37*$J$3) + $T37 + IF(OR(Q37="n/a",R37="n/a",S37="n/a"),0,R37*$D$3 + Q37*S37*$P$3) -> 0.01306569363 | V37: 0.05
A38: 6.672141048e-06 | B38: 48.08524424 | C38: 3.669585995 | D38: 0.003891063805 | E38: 0.01704375367 | F38: 0.00172327299 | G38: 1.023985178 | H38: n/a | I38: n/a | J38: n/a | K38: n/a | L38: n/a | M38: n/a | N38: n/a | O38: n/a | P38: n/a | Q38: n/a | R38: n/a | S38: n/a | T38: =IF(AND($J$3=0, P$3=0), 0, 0.000009*SQRT($V38*1000000000)-0.000000000012*($V38*1000000000)+1.6E-21*($V38*1000000000)^2) -> 0 | U38: 0.01917582414 | V38: 0.1
A39: 5.447780353e-06 | B39: 48.09382434 | C39: 3.668276779 | D39: 0.003901390995 | E39: 0.02087052587 | F39: 0.002591307658 | G39: 1.034575479 | H39: n/a | I39: n/a | J39: n/a | K39: n/a | L39: n/a | M39: n/a | N39: n/a | O39: n/a | P39: n/a | Q39: n/a | R39: n/a | S39: n/a | T39: 0 | U39: 0.02418344195 | V39: 0.15
A40: 4.71791618e-06 | B40: 48.10242165 | C40: 3.66696564 | D40: 0.003911699055 | E40: 0.02409490022 | F40: 0.003463586553 | G40: 1.04458999 | H40: n/a | I40: n/a | J40: n/a | K40: n/a | L40: n/a | M40: n/a | N40: n/a | O40: n/a | P40: n/a | Q40: n/a | R40: n/a | S40: n/a | T40: 0 | U40: 0.02863287814 | V40: 0.2
A41: 4.219832517e-06 | B41: 48.11103618 | C41: 3.665652578 | D41: 0.003921987985 | E41: 0.02693409385 | F41: 0.004340093761 | G41: 1.054134174 | H41: n/a | I41: n/a | J41: n/a | K41: n/a | L41: n/a | M41: n/a | N41: n/a | O41: n/a | P41: n/a | Q41: n/a | R41: n/a | S41: n/a | T41: 0 | U41: 0.03273224253 | V41: 0.25
A42: 2.983872188e-06 | B42: 48.1543682 | C42: 3.659058425 | D42: 0.003973145673 | E42: 0.03805628478 | F42: 0.008785497483 | G42: 1.096717218 | H42: n/a | I42: n/a | J42: n/a | K42: n/a | L42: n/a | M42: n/a | N42: n/a | O42: n/a | P42: n/a | Q42: n/a | R42: n/a | S42: n/a | T42: 0 | U42: 0.05052248026 | V42: 0.5
A43: 2.436321439e-06 | B43: 48.19813469 | C43: 3.652416199 | D43: 0.004023825099 | E43: 0.04656691591 | F43: 0.01333422204 | G43: 1.133316069 | H43: n/a | I43: n/a | J43: n/a | K43: n/a | L43: n/a | M43: n/a | N43: n/a | O43: n/a | P43: n/a | Q43: n/a | R43: n/a | S43: n/a | T43: 0 | U43: 0.06610925613 | V43: 0.75
A44: 2.109916258e-06 | B44: =94.15/( SQRT($C44)*( (($D$4/$D$6)/(1-$D$5/$D$6)) + ((((2/(1-$D$5/$D$6))*LN((1/(1-$D$5/$D$6))+1))-(((1/(1-$D$5/$D$6))-1)*LN((1/((1-$D$5/$D$6)^2))-1)))/PI() ) ) ) -> 48.2423388 | C44: 3.6457259 | D44: 0.004074026261 | E44: 0.05372157304 | F44: 0.01798427872 | G44: 1.165774446 | H44: n/a | I44: n/a | J44: n/a | K44: n/a | L44: n/a | M44: n/a | N44: n/a | O44: n/a | P44: n/a | Q44: n/a | R44: n/a | S44: n/a | T44: 0 | U44: 0.08061151578 | V44: 1
A45: 1.887166472e-06 | B45: 48.2869837 | C45: 3.638987528 | D45: 0.004123749159 | E45: 0.0600070123 | F45: 0.02273367936 | G45: 1.195091391 | H45: n/a | I45: n/a | J45: n/a | K45: n/a | L45: n/a | M45: n/a | N45: n/a | O45: n/a | P45: n/a | Q45: n/a | R45: n/a | S45: n/a | T45: 0 | U45: 0.09444754314 | V45: 1.25
A46: 1.722739411e-06 | B46: 48.33207261 | C46: 3.632201084 | D46: 0.004172993795 | E46: 0.06567306499 | F46: 0.0275804364 | G46: 1.221901199 | H46: n/a | I46: n/a | J46: n/a | K46: n/a | L46: n/a | M46: n/a | N46: n/a | O46: n/a | P46: n/a | Q46: n/a | R46: n/a | S46: n/a | T46: 0 | U46: 0.1078264333 | V46: 1.5
A47: 1.594946773e-06 | B47: 48.37760882 | C47: 3.625366567 | D47: 0.004221760167 | E47: 0.07086824879 | F47: 0.03252256296 | G47: 1.246643324 | H47: n/a | I47: n/a | J47: n/a | K47: n/a | L47: n/a | M47: n/a | N47: n/a | O47: n/a | P47: n/a | Q47: n/a | R47: n/a | S47: n/a | T47: 0 | U47: 0.1208699922 | V47: 1.75
A48: 1.491936094e-06 | B48: 48.42359562 | C48: 3.618483977 | D48: 0.004270048275 | E48: 0.07568939587 | F48: 0.03755807297 | G48: 1.269639917 | H48: n/a | I48: n/a | J48: n/a | K48: n/a | L48: n/a | M48: n/a | N48: n/a | O48: n/a | P48: n/a | Q48: n/a | R48: n/a | S48: n/a | T48: 0 | U48: 0.1336563513 | V48: 2
A49: 1.406610839e-06 | B49: 48.47003641 | C49: 3.611553314 | D49: 0.00431785812 | E49: 0.08020380794 | F49: 0.04268498124 | G49: 1.291136767 | H49: n/a | I49: n/a | J49: n/a | K49: n/a | L49: n/a | M49: n/a | N49: n/a | O49: n/a | P49: n/a | Q49: n/a | R49: n/a | S49: n/a | T49: 0 | U49: 0.1462390666 | V49: 2.25
A50: 1.33442821e-06 | B50: 48.51693459 | C50: 3.604574579 | D50: 0.004365189702 | E50: 0.08446051518 | F50: 0.04790130356 | G50: 1.311327101 | H50: n/a | I50: n/a | J50: n/a | K50: n/a | L50: n/a | M50: n/a | N50: n/a | O50: n/a | P50: n/a | Q50: n/a | R50: n/a | S50: n/a | T50: 0 | U50: 0.1586566661 | V50: 2.5
A51: 1.272327376e-06 | B51: 48.56429364 | C51: 3.59754777 | D51: 0.004412043021 | E51: 0.08849655112 | F51: 0.05320505676 | G51: 1.330366417 | H51: n/a | I51: n/a | J51: n/a | K51: n/a | L51: n/a | M51: n/a | N51: n/a | O51: n/a | P51: n/a | Q51: n/a | R51: n/a | S51: n/a | T51: 0 | U51: 0.1709378964 | V51: 2.75
A52: 1.21816072e-06 | B52: 48.61211708 | C52: 3.590472889 | D52: 0.004458418076 | E52: 0.09234070104 | F52: 0.05859425884 | G52: 1.348382228 | H52: n/a | I52: n/a | J52: n/a | K52: n/a | L52: n/a | M52: n/a | N52: n/a | O52: n/a | P52: n/a | Q52: n/a | R52: n/a | S52: n/a | T52: 0 | U52: 0.183104819 | V52: 3
A53: 1.170370962e-06 | B53: 48.66040848 | C53: 3.583349935 | D53: 0.004504314867 | E53: 0.09601586646 | F53: 0.06406692904 | G53: 1.365480734 | H53: n/a | I53: n/a | J53: n/a | K53: n/a | L53: n/a | M53: n/a | N53: n/a | O53: n/a | P53: n/a | Q53: n/a | R53: n/a | S53: n/a | T53: 0 | U53: 0.1951747448 | V53: 3.25
A54: 1.127797679e-06 | B54: 48.70917147 | C54: 3.576178909 | D54: 0.004549733395 | E54: 0.0995406231 | F54: 0.06962108795 | G54: 1.381751548 | H54: n/a | I54: n/a | J54: n/a | K54: n/a | L54: n/a | M54: n/a | N54: n/a | O54: n/a | P54: n/a | Q54: n/a | R54: n/a | S54: n/a | T54: 0 | U54: 0.207161498 | V54: 3.5
A55: 1.089556071e-06 | B55: 48.75840972 | C55: 3.568959809 | D55: 0.00459467366 | E55: 0.1029302853 | F55: 0.07525475756 | G55: 1.397271128 | H55: n/a | I55: n/a | J55: n/a | K55: n/a | L55: n/a | M55: n/a | N55: n/a | O55: n/a | P55: n/a | Q55: n/a | R55: n/a | S55: n/a | T55: 0 | U55: 0.2190762734 | V55: 3.75
A56: 1.054958129e-06 | B56: 48.80812699 | C56: 3.561692637 | D56: 0.004639135662 | E56: 0.1061976555 | F56: 0.0809659614 | G56: 1.412105346 | H56: n/a | I56: n/a | J56: n/a | K56: n/a | L56: n/a | M56: n/a | N56: n/a | O56: n/a | P56: n/a | Q56: n/a | R56: n/a | S56: n/a | T56: 0 | U56: 0.2309282384 | V56: 4
A57: 1.023459717e-06 | B57: 48.85832704 | C57: 3.554377392 | D57: 0.0046831194 | E57: 0.1093535655 | F57: 0.08675272461 | G57: 1.426311426 | H57: n/a | I57: n/a | J57: n/a | K57: n/a | L57: n/a | M57: n/a | N57: n/a | O57: n/a | P57: n/a | Q57: n/a | R57: n/a | S57: n/a | T57: 0 | U57: 0.2427249647 | V57: 4.25
A58: 9.946240626e-07 | B58: 48.90901374 | C58: 3.547014074 | D58: 0.004726624875 | E58: 0.1124072769 | F58: 0.09261307403 | G58: 1.439939458 | H58: n/a | I58: n/a | J58: n/a | K58: n/a | L58: n/a | M58: n/a | N58: n/a | O58: n/a | P58: n/a | Q58: n/a | R58: n/a | S58: n/a | T58: 0 | U58: 0.2544727473 | V58: 4.5
A59: 9.680959736e-07 | B59: 48.96019099 | C59: 3.539602684 | D59: 0.004769652086 | E59: 0.1153667815 | F59: 0.0985450383 | G59: 1.453033572 | H59: n/a | I59: n/a | J59: n/a | K59: n/a | L59: n/a | M59: n/a | N59: n/a | O59: n/a | P59: n/a | Q59: n/a | R59: n/a | S59: n/a | T59: 0 | U59: 0.2661768448 | V59: 4.75
A60: 9.435832361e-07 | B60: 49.01186275 | C60: 3.53214322 | D60: 0.004812201034 | E60: 0.1182390329 | F60: 0.1045466479 | G60: 1.465632881 | H60: n/a | I60: n/a | J60: n/a | K60: n/a | L60: n/a | M60: n/a | N60: n/a | O60: n/a | P60: n/a | Q60: n/a | R60: n/a | S60: n/a | T60: 0 | U60: 0.2778416623 | V60: 5
A61: 9.208429489e-07 | B61: 49.06403305 | C61: 3.524635684 | D61: 0.004854271719 | E61: 0.1210301252 | F61: 0.1106159355 | G61: 1.47777224 | H61: n/a | I61: n/a | J61: n/a | K61: n/a | L61: n/a | M61: n/a | N61: n/a | O61: n/a | P61: n/a | Q61: n/a | R61: n/a | S61: n/a | T61: 0 | U61: 0.2894708948 | V61: 5.25
A62: 8.996713154e-07 | B62: 49.11670597 | C62: 3.517080075 | D62: 0.00489586414 | E62: 0.1237454351 | F62: 0.1167509355 | G62: 1.489482856 | H62: n/a | I62: n/a | J62: n/a | K62: n/a | L62: n/a | M62: n/a | N62: n/a | O62: n/a | P62: n/a | Q62: n/a | R62: n/a | S62: n/a | T62: 0 | U62: 0.3010676396 | V62: 5.5
A63: 8.798959046e-07 | B63: 49.16988566 | C63: 3.509476394 | D63: 0.004936978298 | E63: 0.1263897338 | F63: 0.1229496847 | G63: 1.500792797 | H63: n/a | I63: n/a | J63: n/a | K63: n/a | L63: n/a | M63: n/a | N63: n/a | O63: n/a | P63: n/a | Q63: n/a | R63: n/a | S63: n/a | T63: 0 | U63: 0.3126344869 | V63: 5.75
A64: 8.613697055e-07 | B64: 49.22357633 | C64: 3.501824639 | D64: 0.004977614193 | E64: 0.1289672788 | F64: 0.1292102222 | G64: 1.51172741 | H64: n/a | I64: n/a | J64: n/a | K64: n/a | L64: n/a | M64: n/a | N64: n/a | O64: n/a | P64: n/a | Q64: n/a | R64: n/a | S64: n/a | T64: 0 | U64: 0.3241735926 | V64: 6
A65: 8.439665033e-07 | B65: 49.27778224 | C65: 3.494124812 | D65: 0.005017771824 | E65: 0.1314818875 | F65: 0.1355305893 | G65: 1.52230967 | H65: n/a | I65: n/a | J65: n/a | K65: n/a | L65: n/a | M65: n/a | N65: n/a | O65: n/a | P65: n/a | Q65: n/a | R65: n/a | S65: n/a | T65: 0 | U65: 0.3356867379 | V65: 6.25
A66: 8.275772441e-07 | B66: 49.33250774 | C66: 3.486376912 | D66: 0.005057451192 | E66: 0.1339369981 | F66: 0.1419088299 | G66: 1.532560472 | H66: n/a | I66: n/a | J66: n/a | K66: n/a | L66: n/a | M66: n/a | N66: n/a | O66: n/a | P66: n/a | Q66: n/a | R66: n/a | S66: n/a | T66: 0 | U66: 0.3471753788 | V66: 6.5
A67: 8.121071465e-07 | B67: 49.38775723 | C67: 3.478580939 | D67: 0.005096652296 | E67: 0.1363357203 | F67: 0.1483429903 | G67: 1.542498883 | H67: n/a | I67: n/a | J67: n/a | K67: n/a | L67: n/a | M67: n/a | N67: n/a | O67: n/a | P67: n/a | Q67: n/a | R67: n/a | S67: n/a | T67: 0 | U67: 0.3586406866 | V67: 6.75
A68: 7.974733867e-07 | B68: 49.44353518 | C68: 3.470736894 | D68: 0.005135375137 | E68: 0.1386808773 | F68: =( (20*LOG(EXP(1))/2) * 2*PI()*$V68*10^9 * $D68 *SQRT($C68) ) / (299792458*39.3700787 ) -> 0.1548311196 | G68: 1.552142355 | H68: n/a | I68: n/a | J68: n/a | K68: n/a | L68: n/a | M68: n/a | N68: n/a | O68: n/a | P68: n/a | Q68: n/a | R68: n/a | S68: n/a | T68: 0 | U68: 0.370083583 | V68: 7
A69: 7.836032262e-07 | B69: 49.49984613 | C69: 3.462844776 | D69: 0.005173619715 | E69: 0.140975041 | F69: 0.1613712694 | G69: 1.5615069 | H69: n/a | I69: n/a | J69: n/a | K69: n/a | L69: n/a | M69: n/a | N69: n/a | O69: n/a | P69: n/a | Q69: n/a | R69: n/a | S69: n/a | T69: 0 | U69: 0.3815047687 | V69: 7.25
A70: 7.704324861e-07 | B70: 49.55669468 | C70: 3.454904585 | D70: 0.005211386029 | E70: 0.1432205624 | F70: 0.1679614946 | G70: 1.570607253 | H70: n/a | I70: n/a | J70: n/a | K70: n/a | L70: n/a | M70: n/a | N70: n/a | O70: n/a | P70: n/a | Q70: n/a | R70: n/a | S70: n/a | T70: 0 | U70: 0.3929047486 | V70: 7.5
A71: 7.579042936e-07 | B71: 49.61408553 | C71: 3.446916321 | D71: 0.00524867408 | E71: 0.1454195966 | F71: 0.1745998524 | G71: 1.579457002 | H71: n/a | I71: n/a | J71: n/a | K71: n/a | L71: n/a | M71: n/a | N71: n/a | O71: n/a | P71: n/a | Q71: n/a | R71: n/a | S71: n/a | T71: 0 | U71: 0.4042838525 | V71: 7.75
A72: 7.45968047e-07 | B72: 49.67202341 | C72: 3.438879984 | D72: 0.005285483867 | E72: 0.1475741251 | F72: 0.1812844036 | G72: 1.588068711 | H72: n/a | I72: n/a | J72: n/a | K72: n/a | L72: n/a | M72: n/a | N72: n/a | O72: n/a | P72: n/a | Q72: n/a | R72: n/a | S72: n/a | T72: 0 | U72: 0.4156422543 | V72: 8
A73: 7.34578553e-07 | B73: 49.73051315 | C73: 3.430795575 | D73: 0.005321815391 | E73: 0.1496859745 | F73: 0.1880132117 | G73: 1.596454017 | H73: n/a | I73: n/a | J73: n/a | K73: n/a | L73: n/a | M73: n/a | N73: n/a | O73: n/a | P73: n/a | Q73: n/a | R73: n/a | S73: n/a | T73: 0 | U73: 0.426979987 | V73: 8.25
A74: 7.236953061e-07 | B74: 49.78955965 | C74: 3.422663092 | D74: 0.005357668652 | E74: 0.1517568323 | F74: 0.1947843437 | G74: 1.604623724 | H74: n/a | I74: n/a | J74: n/a | K74: n/a | L74: n/a | M74: n/a | N74: n/a | O74: n/a | P74: n/a | Q74: n/a | R74: n/a | S74: n/a | T74: 0 | U74: 0.4382969571 | V74: 8.5
A75: 7.132818811e-07 | B75: 49.84916788 | C75: 3.414482537 | D75: 0.00539304365 | E75: 0.1537882619 | F75: 0.2015958698 | G75: 1.612587878 | H75: n/a | I75: n/a | J75: n/a | K75: n/a | L75: n/a | M75: n/a | N75: n/a | O75: n/a | P75: n/a | Q75: n/a | R75: n/a | S75: n/a | T75: 0 | U75: 0.4495929566 | V75: 8.75
A76: 7.033054194e-07 | B76: 49.90934291 | C76: 3.40625391 | D76: 0.005427940384 | E76: 0.155781714 | F76: 0.2084458636 | G76: 1.62035584 | H76: n/a | I76: n/a | J76: n/a | K76: n/a | L76: n/a | M76: n/a | N76: n/a | O76: n/a | P76: n/a | Q76: n/a | R76: n/a | S76: n/a | T76: 0 | U76: 0.4608676736 | V76: 9
A77: 6.937361923e-07 | B77: 49.97008985 | C77: 3.397977209 | D77: 0.005462358854 | E77: 0.157738538 | F77: 0.2153324023 | G77: 1.627936349 | H77: n/a | I77: n/a | J77: n/a | K77: n/a | L77: n/a | M77: n/a | N77: n/a | O77: n/a | P77: n/a | Q77: n/a | R77: n/a | S77: n/a | T77: 0 | U77: 0.4721207019 | V77: 9.25
A78: 6.845472278e-07 | B78: 50.03141392 | C78: 3.389652436 | D78: 0.005496299062 | E78: 0.1596599913 | F78: 0.2222535666 | G78: 1.635337572 | H78: n/a | I78: n/a | J78: n/a | K78: n/a | L78: n/a | M78: n/a | N78: n/a | O78: n/a | P78: n/a | Q78: n/a | R78: n/a | S78: n/a | T78: 0 | U78: 0.4833515492 | V78: 9.5
A79: 6.757139902e-07 | B79: 50.09332041 | C79: 3.38127959 | D79: 0.005529761005 | E79: 0.1615472478 | F79: 0.2292074411 | G79: 1.642567156 | H79: n/a | I79: n/a | J79: n/a | K79: n/a | L79: n/a | M79: n/a | N79: n/a | O79: n/a | P79: n/a | Q79: n/a | R79: n/a | S79: n/a | T79: 0 | U79: 0.4945596444 | V79: 9.75
A80: 6.672141048e-07 | B80: 50.1558147 | C80: 3.372858671 | D80: 0.005562744686 | E80: 0.1634014048 | F80: 0.236192114 | G80: 1.649632273 | H80: n/a | I80: n/a | J80: n/a | K80: n/a | L80: n/a | M80: n/a | N80: n/a | O80: n/a | P80: n/a | Q80: n/a | R80: n/a | S80: n/a | T80: 0 | U80: 0.5057443449 | V80: 10
A81: 6.590271186e-07 | B81: 50.21890225 | C81: 3.364389679 | D81: 0.005595250103 | E81: 0.1652234905 | F81: 0.2432056775 | G81: 1.656539656 | H81: n/a | I81: n/a | J81: n/a | K81: n/a | L81: n/a | M81: n/a | N81: n/a | O81: n/a | P81: n/a | Q81: n/a | R81: n/a | S81: n/a | T81: 0 | U81: 0.5169049416 | V81: 10.25
A82: 6.511342936e-07 | B82: 50.28258861 | C82: 3.355872615 | D82: 0.005627277257 | E82: 0.167014469 | F82: 0.2502462279 | G82: 1.663295635 | H82: n/a | I82: n/a | J82: n/a | K82: n/a | L82: n/a | M82: n/a | N82: n/a | O82: n/a | P82: n/a | Q82: n/a | R82: n/a | S82: n/a | T82: 0 | U82: 0.5280406653 | V82: 10.5
A83: 6.435184258e-07 | B83: 50.3468794 | C83: 3.347307477 | D83: 0.005658826147 | E83: 0.1687752461 | F83: 0.2573118655 | G83: 1.669906172 | H83: n/a | I83: n/a | J83: n/a | K83: n/a | L83: n/a | M83: n/a | N83: n/a | O83: n/a | P83: n/a | Q83: n/a | R83: n/a | S83: n/a | T83: 0 | U83: 0.5391506907 | V83: 10.75
A84: 6.36163688e-07 | B84: 50.41178036 | C84: 3.338694267 | D84: 0.005689896774 | E84: 0.1705066738 | F84: 0.2644006949 | G84: 1.676376883 | H84: n/a | I84: n/a | J84: n/a | K84: n/a | L84: n/a | M84: n/a | N84: n/a | O84: n/a | P84: n/a | Q84: n/a | R84: n/a | S84: n/a | T84: 0 | U84: 0.5502341413 | V84: 11
A85: 6.290554907e-07 | B85: 50.4772973 | C85: 3.330032985 | D85: 0.005720489138 | E85: 0.1722095544 | F85: 0.2715108249 | G85: 1.682713071 | H85: n/a | I85: n/a | J85: n/a | K85: n/a | L85: n/a | M85: n/a | N85: n/a | O85: n/a | P85: n/a | Q85: n/a | R85: n/a | S85: n/a | T85: 0 | U85: 0.5612900931 | V85: 11.25
A86: 6.221803609e-07 | B86: 50.54343613 | C86: 3.321323629 | D86: 0.005750603238 | E86: 0.1738846445 | F86: 0.2786403688 | G86: 1.688919746 | H86: n/a | I86: n/a | J86: n/a | K86: n/a | L86: n/a | M86: n/a | N86: n/a | O86: n/a | P86: n/a | Q86: n/a | R86: n/a | S86: n/a | T86: 0 | U86: 0.5723175784 | V86: 11.5
A87: 6.155258341e-07 | B87: 50.61020285 | C87: 3.312566201 | D87: 0.005780239075 | E87: 0.1755326585 | F87: 0.2857874445 | G87: 1.695001643 | H87: n/a | I87: n/a | J87: n/a | K87: n/a | L87: n/a | M87: n/a | N87: n/a | O87: n/a | P87: n/a | Q87: n/a | R87: n/a | S87: n/a | T87: 0 | U87: 0.5833155892 | V87: 11.75
A88: 6.090803598e-07 | B88: 50.67760356 | C88: 3.3037607 | D88: 0.005809396649 | E88: 0.1771542715 | F88: 0.2929501745 | G88: 1.700963249 | H88: n/a | I88: n/a | J88: n/a | K88: n/a | L88: n/a | M88: n/a | N88: n/a | O88: n/a | P88: n/a | Q88: n/a | R88: n/a | S88: n/a | T88: 0 | U88: 0.5942830797 | V88: 12
A89: 6.028332166e-07 | B89: 50.74564446 | C89: 3.294907126 | D89: 0.005838075959 | E89: 0.1787501221 | F89: 0.3001266858 | G89: 1.706808814 | H89: n/a | I89: n/a | J89: n/a | K89: n/a | L89: n/a | M89: n/a | N89: n/a | O89: n/a | P89: n/a | Q89: n/a | R89: n/a | S89: n/a | T89: 0 | U89: 0.6052189698 | V89: 12.25
A90: 5.967744376e-07 | B90: 50.81433185 | C90: 3.286005479 | D90: 0.005866277005 | E90: 0.1803208153 | F90: 0.3073151106 | G90: 1.71254237 | H90: n/a | I90: n/a | J90: n/a | K90: n/a | L90: n/a | M90: n/a | N90: n/a | O90: n/a | P90: n/a | Q90: n/a | R90: n/a | S90: n/a | T90: 0 | U90: 0.616122147 | V90: 12.5
A91: 5.908947431e-07 | B91: 50.88367214 | C91: 3.27705576 | D91: 0.005893999789 | E91: 0.1818669242 | F91: 0.3145135858 | G91: 1.718167747 | H91: n/a | I91: n/a | J91: n/a | K91: n/a | L91: n/a | M91: n/a | N91: n/a | O91: n/a | P91: n/a | Q91: n/a | R91: n/a | S91: n/a | T91: 0 | U91: 0.6269914692 | V91: 12.75
A92: 5.876770893e-07 | B92: 50.9227903 | C92: 3.272022919 | D92: 0.005909315642 | E92: 0.1827222108 | F92: 0.3185484291 | G92: 1.721272068 | H92: n/a | I92: n/a | J92: n/a | K92: n/a | L92: n/a | M92: n/a | N92: n/a | O92: n/a | P92: n/a | Q92: n/a | R92: n/a | S92: n/a | T92: 0 | U92: 0.6330630669 | V92: 12.89
A93: 5.796385742e-07 | B93: 51.0243375 | C93: 3.259012102 | D93: 0.005948010566 | E93: 0.1848875382 | F93: 0.3289332605 | G93: 1.729108336 | H93: n/a | I93: n/a | J93: n/a | K93: n/a | L93: n/a | M93: n/a | N93: n/a | O93: n/a | P93: n/a | Q93: n/a | R93: n/a | S93: n/a | T93: 0 | U93: 0.6486238441 | V93: 13.25
A94: 5.742464703e-07 | B94: 51.09567591 | C94: 3.249918165 | D94: 0.005974298559 | E94: 0.1863630506 | F94: 0.3361507597 | G94: 1.734430304 | H94: n/a | I94: n/a | J94: n/a | K94: n/a | L94: n/a | M94: n/a | N94: n/a | O94: n/a | P94: n/a | Q94: n/a | R94: n/a | S94: n/a | T94: 0 | U94: 0.6593844823 | V94: 13.5
A95: 5.690021005e-07 | B95: 51.16769388 | C95: 3.240776154 | D95: 0.006000108289 | E95: 0.1878159972 | F95: 0.3433709087 | G95: 1.739657624 | H95: n/a | I95: n/a | J95: n/a | K95: n/a | L95: n/a | M95: n/a | N95: n/a | O95: n/a | P95: n/a | Q95: n/a | R95: n/a | S95: n/a | T95: 0 | U95: 0.6701064401 | V95: 13.75
A96: 5.638988395e-07 | B96: 51.24039835 | C96: 3.231586071 | D96: 0.006025439755 | E96: 0.1892468222 | F96: 0.3505918707 | G96: 1.744793288 | H96: n/a | I96: n/a | J96: n/a | K96: n/a | L96: n/a | M96: n/a | N96: n/a | O96: n/a | P96: n/a | Q96: n/a | R96: n/a | S96: n/a | T96: 0 | U96: 0.680788456 | V96: 14
A97: 5.58930471e-07 | B97: 51.31379639 | C97: 3.222347915 | D97: 0.006050292958 | E97: 0.1906559489 | F97: 0.3578118147 | G97: 1.749840153 | H97: n/a | I97: n/a | J97: n/a | K97: n/a | L97: n/a | M97: n/a | N97: n/a | O97: n/a | P97: n/a | Q97: n/a | R97: n/a | S97: n/a | T97: 0 | U97: 0.6914292495 | V97: 14.25
A98: 5.54091155e-07 | B98: 51.38789516 | C98: 3.213061686 | D98: 0.006074667898 | E98: 0.1920437806 | F98: 0.3650289152 | G98: 1.754800943 | H98: n/a | I98: n/a | J98: n/a | K98: n/a | L98: n/a | M98: n/a | N98: n/a | O98: n/a | P98: n/a | Q98: n/a | R98: n/a | S98: n/a | T98: 0 | U98: 0.7020275225 | V98: 14.5
A99: 5.493753998e-07 | B99: 51.46270197 | C99: 3.203727384 | D99: 0.006098564574 | E99: 0.1934107019 | F99: 0.3722413525 | G99: 1.759678265 | H99: n/a | I99: n/a | J99: n/a | K99: n/a | L99: n/a | M99: n/a | N99: n/a | O99: n/a | P99: n/a | Q99: n/a | R99: n/a | S99: n/a | T99: 0 | U99: 0.7125819608 | V99: 14.75
A100: 5.447780353e-07 | B100: 51.53822423 | C100: =$D$29*(V100*10^9)^2 + $D$30*(V100*10^9) + $D$31 -> 3.19434501 | D100: =$D$32*(V100*10^9)^2 + $D$33*(V100*10^9) + $D$34 -> 0.006121982987 | E100: 0.1947570798 | F100: =( (20*LOG(EXP(1))/2) * 2*PI()*$V100*10^9 * $D100 *SQRT($C100) ) / (299792458*39.3700787 ) -> 0.3794473129 | G100: 1.764474608 | H100: n/a | I100: n/a | J100: n/a | K100: n/a | L100: n/a | M100: n/a | N100: n/a | O100: n/a | P100: n/a | Q100: n/a | R100: n/a | S100: n/a | T100: 0 | U100: 0.723091235 | V100: 15
A101: =SQRT(1/(PI()*56900000*0.00000125663))*SQRT(1/($V101*1000000000)) -> 5.402941893e-07 | B101: =94.15/( SQRT($C101)*( (($D$4/$D$6)/(1-$D$5/$D$6)) + ((((2/(1-$D$5/$D$6))*LN((1/(1-$D$5/$D$6))+1))-(((1/(1-$D$5/$D$6))-1)*LN((1/((1-$D$5/$D$6)^2))-1)))/PI() ) ) ) -> 51.61446949 | C101: 3.184914562 | D101: 0.006144923137 | E101: =IF( 1/(SQRT(PI()*(4*PI()*10^-7*0.999994)*59600000*$V101*10^9)) >= $D$5*0.0000254, (20*LOG(EXP(1))/2) * ((1/59600000)*39.3700787/($D$5*0.001)*(1/(0.001*$D$4)+1/(6*0.001*($D$6-$D$5)/2))) * (1/$B101), (20*LOG(EXP(1))/2) * ((SQRT(PI()*(4*PI()*10^-7*0.999994)/59600000)*SQRT($V101*10^9)*(1/(0.001*$D$4)+1/(6*0.001*($D$6-$D$5)/2))))/2 * (1/$B101) ) -> 0.1960832647 | F101: 0.3866449887 | G101: =1 + ((3/2)*($C$14)*4*PI()*($D$14)^2)/(0.0000094*0.00000814)/(1+$A101/$D$14+$A101^2/2/($D$14)^2) -> 1.769192356 | H101: =IF($J$3=0,"n/a", 94.15/( SQRT($I101)*( (($J$4/$J$6)/(1-$J$5/$J$6)) + ((((2/(1-$J$5/$J$6))*LN((1/(1-$J$5/$J$6))+1))-(((1/(1-$J$5/$J$6))-1)*LN((1/((1-$J$5/$J$6)^2))-1)))/PI() ) ) )) -> n/a | I101: =IF($J$3=0,"n/a", $J$29*(V101*10^9)^2 + $J$30*(V101*10^9) + $J$31) -> n/a | J101: =IF($J$3=0,"n/a", $J$32*(V101*10^9)^2 + $J$33*(V101*10^9) + $J$34) -> n/a | K101: =IF($J$3=0,"n/a", IF( 1/(SQRT(PI()*(4*PI()*10^-7*0.999994)*59600000*$V101*10^9)) >= $J$5*0.0000254, (20*LOG(EXP(1))/2) * ((1/59600000)*39.3700787/($J$5*0.001)*(1/(0.001*$J$4)+1/(6*0.001*($J$6-$J$5)/2))) * (1/$H101), (20*LOG(EXP(1))/2) * ((SQRT(PI()*(4*PI()*10^-7*0.999994)/59600000)*SQRT($V101*10^9)*(1/(0.001*$J$4)+1/(6*0.001*($J$6-$J$5)/2))))/2 * (1/$H101) )) -> n/a | L101: =IF($J$3=0,"n/a", ( (20*LOG(EXP(1))/2) * 2*PI()*$V101*10^9 * $J101 *SQRT($I101) ) / (299792458*39.3700787 )) -> n/a | M101: =IF($J$3=0,"n/a", 1 + ((3/2)*($I$14*$J$4*0.001*0.0000254*0.0254/0.0000094/0.00000814)*4*PI()*(0.0000005)^2)/($J$4*0.001*0.0000254*0.0254)/(1+$A101/$J$14+$A101^2/2/($J$14)^2)) -> n/a | N101: =IF($P$3=0,"n/a", 94.15/( SQRT($O101)*( (($P$4/$P$6)/(1-$P$5/$P$6)) + ((((2/(1-$P$5/$P$6))*LN((1/(1-$P$5/$P$6))+1))-(((1/(1-$P$5/$P$6))-1)*LN((1/((1-$P$5/$P$6)^2))-1)))/PI() ) ) ) ) -> n/a | O101: =IF($P$3=0,"n/a", $P$29*(V101*10^9)^2 + $P$30*(V101*10^9) + $P$31 ) -> n/a | P101: =IF($P$3=0,"n/a", $P$32*(V101*10^9)^2 + $P$33*(V101*10^9) + $P$34 ) -> n/a | Q101: =IF($P$3=0,"n/a", IF( 1/(SQRT(PI()*(4*PI()*10^-7*0.999994)*59600000*$V101*10^9)) >= $P$5*0.0000254, (20*LOG(EXP(1))/2) * ((1/59600000)*39.3700787/($P$5*0.001)*(1/(0.001*$P$4)+1/(6*0.001*($P$6-$P$5)/2))) * (1/$N101), (20*LOG(EXP(1))/2) * ((SQRT(PI()*(4*PI()*10^-7*0.999994)/59600000)*SQRT($V101*10^9)*(1/(0.001*$P$4)+1/(6*0.001*($P$6-$P$5)/2))))/2 * (1/$N101) )) -> n/a | R101: =IF($P$3=0,"n/a", ( (20*LOG(EXP(1))/2) * 2*PI()*$V101*10^9 * $P101 *SQRT($O101) ) / (299792458*39.3700787 ) ) -> n/a | S101: =IF($P$3=0,"n/a", 1 + ((3/2)*($O$14*$P$4*0.001*0.0000254*0.0254/0.0000094/0.00000814)*4*PI()*(0.0000005)^2)/($P$4*0.001*0.0000254*0.0254)/(1+$A101/$P$14+$A101^2/2/($P$14)^2) ) -> n/a | T101: 0 | U101: =F101*$D$3 + E101*G101*$D$3 + $T101 + IF(OR(K101="n/a",L101="n/a",M101="n/a"),0, L101*$D$3 + K101*M101*$J$3) + $T101 + IF(OR(Q101="n/a",R101="n/a",S101="n/a"),0,R101*$D$3 + Q101*S101*$P$3) -> 0.7335540019 | V101: 15.25
A102: 5.359192655e-07 | B102: 51.69144541 | C102: 3.175436042 | D102: 0.006167385023 | E102: 0.1973895914 | F102: 0.3938325784 | G102: 1.773833791 | H102: n/a | I102: n/a | J102: n/a | K102: n/a | L102: n/a | M102: n/a | N102: n/a | O102: n/a | P102: n/a | Q102: n/a | R102: n/a | S102: n/a | T102: =IF(AND($J$3=0, P$3=0), 0, 0.000009*SQRT($V102*1000000000)-0.000000000012*($V102*1000000000)+1.6E-21*($V102*1000000000)^2) -> 0 | U102: 0.7439689055 | V102: 15.5
A103: 5.316489244e-07 | B103: 51.7691598 | C103: 3.165909449 | D103: 0.006189368646 | E103: 0.1986763797 | F103: 0.4010082865 | G103: 1.778401097 | H103: n/a | I103: n/a | J103: n/a | K103: n/a | L103: n/a | M103: n/a | N103: n/a | O103: n/a | P103: n/a | Q103: n/a | R103: n/a | S103: n/a | T103: 0 | U103: 0.7543345781 | V103: 15.75
A104: 5.274790646e-07 | B104: 51.8476206 | C104: 3.156334784 | D104: 0.006210874006 | E104: 0.1999439355 | F104: 0.4081703242 | G104: 1.78289637 | H104: n/a | I104: n/a | J104: n/a | K104: n/a | L104: n/a | M104: n/a | N104: n/a | O104: n/a | P104: n/a | Q104: n/a | R104: n/a | S104: n/a | T104: 0 | U104: 0.7646496411 | V104: 16
A105: 5.234058062e-07 | B105: 51.92683586 | C105: 3.146712046 | D105: 0.006231901102 | E105: 0.2011925514 | F105: 0.4153169089 | G105: 1.78732162 | H105: n/a | I105: n/a | J105: n/a | K105: n/a | L105: n/a | M105: n/a | N105: n/a | O105: n/a | P105: n/a | Q105: n/a | R105: n/a | S105: n/a | T105: 0 | U105: 0.7749127057 | V105: 16.25
A106: 5.194254761e-07 | B106: 52.0068138 | C106: 3.137041234 | D106: 0.006252449935 | E106: 0.2024225073 | F106: 0.4224462648 | G106: 1.791678774 | H106: n/a | I106: n/a | J106: n/a | K106: n/a | L106: n/a | M106: n/a | N106: n/a | O106: n/a | P106: n/a | Q106: n/a | R106: n/a | S106: n/a | T106: 0 | U106: 0.7851223745 | V106: 16.5
A107: 5.155345938e-07 | B107: 52.08756277 | C107: 3.127322351 | D107: 0.006272520504 | E107: 0.2036340712 | F107: 0.4295566227 | G107: 1.795969685 | H107: n/a | I107: n/a | J107: n/a | K107: n/a | L107: n/a | M107: n/a | N107: n/a | O107: n/a | P107: n/a | Q107: n/a | R107: n/a | S107: n/a | T107: 0 | U107: 0.7952772415 | V107: 16.75
A108: 5.117298585e-07 | B108: 52.16909125 | C108: 3.117555394 | D108: 0.00629211281 | E108: 0.2048275 | F108: 0.4366462202 | G108: 1.800196131 | H108: n/a | I108: n/a | J108: n/a | K108: n/a | L108: n/a | M108: n/a | N108: n/a | O108: n/a | P108: n/a | Q108: n/a | R108: n/a | S108: n/a | T108: 0 | U108: 0.8053758931 | V108: 17
A109: 5.080081374e-07 | B109: 52.25140789 | C109: 3.107740364 | D109: 0.006311226853 | E109: 0.2060030394 | F109: 0.4437133018 | G109: 1.804359822 | H109: n/a | I109: n/a | J109: n/a | K109: n/a | L109: n/a | M109: n/a | N109: n/a | O109: n/a | P109: n/a | Q109: n/a | R109: n/a | S109: n/a | T109: 0 | U109: 0.8154169092 | V109: 17.25
A110: 5.04366455e-07 | B110: 52.33452149 | C110: 3.097877262 | D110: 0.006329862632 | E110: 0.2071609252 | F110: 0.4507561193 | G110: 1.808462401 | H110: n/a | I110: n/a | J110: n/a | K110: n/a | L110: n/a | M110: n/a | N110: n/a | O110: n/a | P110: n/a | Q110: n/a | R110: n/a | S110: n/a | T110: 0 | U110: 0.8253988635 | V110: 17.5
A111: 5.008019831e-07 | B111: 52.41844098 | C111: 3.087966087 | D111: 0.006348020148 | E111: 0.2083013832 | F111: 0.4577729313 | G111: 1.812505452 | H111: n/a | I111: n/a | J111: n/a | K111: n/a | L111: n/a | M111: n/a | N111: n/a | O111: n/a | P111: n/a | Q111: n/a | R111: n/a | S111: n/a | T111: 0 | U111: 0.835320324 | V111: 17.75
A112: 4.973120313e-07 | B112: 52.50317546 | C112: 3.078006839 | D112: 0.0063656994 | E112: 0.20942463 | F112: 0.4647620041 | G112: 1.816490496 | H112: n/a | I112: n/a | J112: n/a | K112: n/a | L112: n/a | M112: n/a | N112: n/a | O112: n/a | P112: n/a | Q112: n/a | R112: n/a | S112: n/a | T112: 0 | U112: 0.8451798541 | V112: 18
A113: 4.938940387e-07 | B113: 52.5887342 | C113: 3.067999519 | D113: 0.006382900389 | E113: 0.2105308734 | F113: 0.4717216111 | G113: 1.820419001 | H113: n/a | I113: n/a | J113: n/a | K113: n/a | L113: n/a | M113: n/a | N113: n/a | O113: n/a | P113: n/a | Q113: n/a | R113: n/a | S113: n/a | T113: 0 | U113: 0.8549760131 | V113: 18.25
A114: 4.905455659e-07 | B114: 52.67512662 | C114: 3.057944125 | D114: 0.006399623115 | E114: 0.2116203124 | F114: 0.4786500333 | G114: 1.824292379 | H114: n/a | I114: n/a | J114: n/a | K114: n/a | L114: n/a | M114: n/a | N114: n/a | O114: n/a | P114: n/a | Q114: n/a | R114: n/a | S114: n/a | T114: 0 | U114: 0.8647073564 | V114: 18.5
A115: 4.872642879e-07 | B115: 52.76236233 | C115: 3.047840659 | D115: 0.006415867578 | E115: 0.2126931383 | F115: 0.4855455595 | G115: 1.828111992 | H115: n/a | I115: n/a | J115: n/a | K115: n/a | L115: n/a | M115: n/a | N115: n/a | O115: n/a | P115: n/a | Q115: n/a | R115: n/a | S115: n/a | T115: 0 | U115: 0.8743724363 | V115: 18.75
A116: 4.840479868e-07 | B116: 52.85045107 | C116: 3.03768912 | D116: 0.006431633777 | E116: 0.2137495344 | F116: 0.4924064861 | G116: 1.831879155 | H116: n/a | I116: n/a | J116: n/a | K116: n/a | L116: n/a | M116: n/a | N116: n/a | O116: n/a | P116: n/a | Q116: n/a | R116: n/a | S116: n/a | T116: 0 | U116: 0.8839698026 | V116: 19
A117: 4.808945461e-07 | B117: 52.93940279 | C117: 3.027489509 | D117: 0.006446921712 | E117: 0.2147896768 | F117: 0.4992311175 | G117: 1.835595134 | H117: n/a | I117: n/a | J117: n/a | K117: n/a | L117: n/a | M117: n/a | N117: n/a | O117: n/a | P117: n/a | Q117: n/a | R117: n/a | S117: n/a | T117: 0 | U117: 0.8934980031 | V117: 19.25
A118: 4.778019446e-07 | B118: 53.02922762 | C118: 3.017241824 | D118: 0.006461731384 | E118: 0.2158137342 | F118: 0.5060177662 | G118: 1.839261153 | H118: n/a | I118: n/a | J118: n/a | K118: n/a | L118: n/a | M118: n/a | N118: n/a | O118: n/a | P118: n/a | Q118: n/a | R118: n/a | S118: n/a | T118: 0 | U118: 0.9029555837 | V118: 19.5
A119: 4.747682508e-07 | B119: 53.11993584 | C119: 3.006946067 | D119: 0.006476062793 | E119: 0.2168218688 | F119: 0.5127647526 | G119: 1.842878392 | H119: n/a | I119: n/a | J119: n/a | K119: n/a | L119: n/a | M119: n/a | N119: n/a | O119: n/a | P119: n/a | Q119: n/a | R119: n/a | S119: n/a | T119: 0 | U119: 0.9123410895 | V119: 19.75
A120: 4.71791618e-07 | B120: 53.21153797 | C120: 2.996602237 | D120: 0.006489915939 | E120: 0.2178142362 | F120: 0.5194704057 | G120: 1.846447992 | H120: n/a | I120: n/a | J120: n/a | K120: n/a | L120: n/a | M120: n/a | N120: n/a | O120: n/a | P120: n/a | Q120: n/a | R120: n/a | S120: n/a | T120: 0 | U120: 0.9216530647 | V120: 20
A121: 4.688702796e-07 | B121: 53.30404466 | C121: 2.986210334 | D121: 0.006503290821 | E121: 0.2187909857 | F121: 0.5261330626 | G121: 1.849971055 | H121: n/a | I121: n/a | J121: n/a | K121: n/a | L121: n/a | M121: n/a | N121: n/a | O121: n/a | P121: n/a | Q121: n/a | R121: n/a | S121: n/a | T121: 0 | U121: 0.9308900533 | V121: 20.25
A122: 4.660025446e-07 | B122: 53.3974668 | C122: 2.975770358 | D122: 0.00651618744 | E122: 0.2197522606 | F122: 0.5327510692 | G122: 1.853448647 | H122: n/a | I122: n/a | J122: n/a | K122: n/a | L122: n/a | M122: n/a | N122: n/a | O122: n/a | P122: n/a | Q122: n/a | R122: n/a | S122: n/a | T122: 0 | U122: 0.9400505994 | V122: 20.5
A123: 4.631867935e-07 | B123: 53.49181547 | C123: 2.96528231 | D123: 0.006528605795 | E123: 0.2206981984 | F123: 0.5393227799 | G123: 1.856881799 | H123: n/a | I123: n/a | J123: n/a | K123: n/a | L123: n/a | M123: n/a | N123: n/a | O123: n/a | P123: n/a | Q123: n/a | R123: n/a | S123: n/a | T123: 0 | U123: 0.9491332476 | V123: 20.75
A124: 4.604214745e-07 | B124: 53.58710195 | C124: 2.954746189 | D124: 0.006540545887 | E124: 0.2216289312 | F124: 0.545846558 | G124: 1.860271506 | H124: n/a | I124: n/a | J124: n/a | K124: n/a | L124: n/a | M124: n/a | N124: n/a | O124: n/a | P124: n/a | Q124: n/a | R124: n/a | S124: n/a | T124: 0 | U124: 0.9581365435 | V124: 21
A125: 4.577050999e-07 | B125: 53.68333773 | C125: 2.944161995 | D125: 0.006552007716 | E125: 0.2225445855 | F125: 0.5523207755 | G125: 1.863618734 | H125: n/a | I125: n/a | J125: n/a | K125: n/a | L125: n/a | M125: n/a | N125: n/a | O125: n/a | P125: n/a | Q125: n/a | R125: n/a | S125: n/a | T125: 0 | U125: 0.9670590342 | V125: 21.25
A126: 4.550362427e-07 | B126: 53.78053452 | C126: 2.933529728 | D126: 0.006562991281 | E126: 0.2234452829 | F126: 0.5587438138 | G126: 1.866924415 | H126: n/a | I126: n/a | J126: n/a | K126: n/a | L126: n/a | M126: n/a | N126: n/a | O126: n/a | P126: n/a | Q126: n/a | R126: n/a | S126: n/a | T126: 0 | U126: 0.9758992681 | V126: 21.5
A127: 4.524135336e-07 | B127: 53.87870423 | C127: 2.922849389 | D127: 0.006573496583 | E127: 0.22433114 | F127: 0.5651140633 | G127: 1.870189455 | H127: n/a | I127: n/a | J127: n/a | K127: n/a | L127: n/a | M127: n/a | N127: n/a | O127: n/a | P127: n/a | Q127: n/a | R127: n/a | S127: n/a | T127: 0 | U127: 0.9846557959 | V127: 21.75
A128: 4.498356577e-07 | B128: 53.97785903 | C128: 2.912120977 | D128: 0.006583523621 | E128: 0.2252022685 | F128: 0.5714299237 | G128: 1.873414729 | H128: n/a | I128: n/a | J128: n/a | K128: n/a | L128: n/a | M128: n/a | N128: n/a | O128: n/a | P128: n/a | Q128: n/a | R128: n/a | S128: n/a | T128: 0 | U128: 0.9933271705 | V128: 22
A129: 4.473013522e-07 | B129: 54.0780113 | C129: 2.901344492 | D129: 0.006593072397 | E129: 0.2260587754 | F129: 0.5776898043 | G129: 1.876601086 | H129: n/a | I129: n/a | J129: n/a | K129: n/a | L129: n/a | M129: n/a | N129: n/a | O129: n/a | P129: n/a | Q129: n/a | R129: n/a | S129: n/a | T129: 0 | U129: 1.001911948 | V129: 22.25
A130: 4.448094032e-07 | B130: 54.17917365 | C130: 2.890519934 | D130: 0.006602142908 | E130: 0.2269007636 | F130: 0.5838921237 | G130: 1.879749348 | H130: n/a | I130: n/a | J130: n/a | K130: n/a | L130: n/a | M130: n/a | N130: n/a | O130: n/a | P130: n/a | Q130: n/a | R130: n/a | S130: n/a | T130: 0 | U130: 1.010408686 | V130: 22.5
A131: 4.423586441e-07 | B131: 54.28135893 | C131: 2.879647303 | D131: 0.006610735157 | E131: 0.2277283314 | F131: 0.5900353107 | G131: 1.882860313 | H131: n/a | I131: n/a | J131: n/a | K131: n/a | L131: n/a | M131: n/a | N131: n/a | O131: n/a | P131: n/a | Q131: n/a | R131: n/a | S131: n/a | T131: 0 | U131: 1.018815948 | V131: 22.75
A132: 4.399479523e-07 | B132: 54.38458026 | C132: 2.8687266 | D132: 0.006618849142 | E132: 0.228541573 | F132: =( (20*LOG(EXP(1))/2) * 2*PI()*$V132*10^9 * $D132 *SQRT($C132) ) / (299792458*39.3700787 ) -> 0.5961178036 | G132: 1.885934754 | H132: n/a | I132: n/a | J132: n/a | K132: n/a | L132: n/a | M132: n/a | N132: n/a | O132: n/a | P132: n/a | Q132: n/a | R132: n/a | S132: n/a | T132: 0 | U132: 1.027132299 | V132: 23
A133: 4.37576248e-07 | B133: 54.48885098 | C133: 2.857757824 | D133: 0.006626484863 | E133: 0.2293405786 | F133: 0.6021380509 | G133: 1.888973422 | H133: n/a | I133: n/a | J133: n/a | K133: n/a | L133: n/a | M133: n/a | N133: n/a | O133: n/a | P133: n/a | Q133: n/a | R133: n/a | S133: n/a | T133: 0 | U133: 1.035356309 | V133: 23.25
A134: 4.352424913e-07 | B134: 54.59418473 | C134: 2.846740975 | D134: 0.006633642321 | E134: 0.2301254345 | F134: 0.6080945113 | G134: 1.891977045 | H134: n/a | I134: n/a | J134: n/a | K134: n/a | L134: n/a | M134: n/a | N134: n/a | O134: n/a | P134: n/a | Q134: n/a | R134: n/a | S134: n/a | T134: 0 | U134: 1.043486551 | V134: 23.5
A135: 4.329456811e-07 | B135: 54.70059537 | C135: 2.835676053 | D135: 0.006640321516 | E135: 0.2308962231 | F135: 0.6139856535 | G135: 1.89494633 | H135: n/a | I135: n/a | J135: n/a | K135: n/a | L135: n/a | M135: n/a | N135: n/a | O135: n/a | P135: n/a | Q135: n/a | R135: n/a | S135: n/a | T135: 0 | U135: 1.051521604 | V135: 23.75
A136: 4.306848527e-07 | B136: 54.80809708 | C136: 2.824563058 | D136: 0.006646522448 | E136: 0.2316530232 | F136: 0.6198099571 | G136: 1.897881964 | H136: n/a | I136: n/a | J136: n/a | K136: n/a | L136: n/a | M136: n/a | N136: n/a | O136: n/a | P136: n/a | Q136: n/a | R136: n/a | S136: n/a | T136: 0 | U136: 1.059460052 | V136: 24
A137: 4.284590763e-07 | B137: 54.91670427 | C137: 2.813401991 | D137: 0.006652245116 | E137: 0.2323959102 | F137: 0.6255659119 | G137: 1.900784613 | H137: n/a | I137: n/a | J137: n/a | K137: n/a | L137: n/a | M137: n/a | N137: n/a | O137: n/a | P137: n/a | Q137: n/a | R137: n/a | S137: n/a | T137: 0 | U137: 1.067300482 | V137: 24.25
A138: 4.262674554e-07 | B138: 55.02643167 | C138: 2.802192851 | D138: 0.006657489521 | E138: 0.2331249557 | F138: 0.6312520188 | G138: 1.903654925 | H138: n/a | I138: n/a | J138: n/a | K138: n/a | L138: n/a | M138: n/a | N138: n/a | O138: n/a | P138: n/a | Q138: n/a | R138: n/a | S138: n/a | T138: 0 | U138: 1.075041489 | V138: 24.5
A139: 4.241091253e-07 | B139: 55.13729429 | C139: 2.790935638 | D139: 0.006662255662 | E139: 0.2338402283 | F139: 0.6368667893 | G139: 1.90649353 | H139: n/a | I139: n/a | J139: n/a | K139: n/a | L139: n/a | M139: n/a | N139: n/a | O139: n/a | P139: n/a | Q139: n/a | R139: n/a | S139: n/a | T139: 0 | U139: 1.082681672 | V139: 24.75
A140: 4.219832517e-07 | B140: 55.24930744 | C140: 2.779630353 | D140: 0.00666654354 | E140: 0.2345417931 | F140: 0.6424087461 | G140: 1.909301039 | H140: n/a | I140: n/a | J140: n/a | K140: n/a | L140: n/a | M140: n/a | N140: n/a | O140: n/a | P140: n/a | Q140: n/a | R140: n/a | S140: n/a | T140: 0 | U140: 1.090219635 | V140: 25
A141: 4.19889029e-07 | B141: 55.36248675 | C141: 2.768276994 | D141: 0.006670353155 | E141: 0.2352297121 | F141: 0.6478764231 | G141: 1.912078047 | H141: n/a | I141: n/a | J141: n/a | K141: n/a | L141: n/a | M141: n/a | N141: n/a | O141: n/a | P141: n/a | Q141: n/a | R141: n/a | S141: n/a | T141: 0 | U141: 1.097653992 | V141: 25.25
A142: 4.178256798e-07 | B142: 55.47684815 | C142: 2.756875563 | D142: 0.006673684506 | E142: 0.2359040442 | F142: 0.6532683654 | G142: 1.914825134 | H142: n/a | I142: n/a | J142: n/a | K142: n/a | L142: n/a | M142: n/a | N142: n/a | O142: n/a | P142: n/a | Q142: n/a | R142: n/a | S142: n/a | T142: 0 | U142: 1.104983358 | V142: 25.5
A143: 4.157924527e-07 | B143: 55.59240791 | C143: 2.745426059 | D143: 0.006676537594 | E143: 0.2365648452 | F143: 0.6585831299 | G143: 1.917542861 | H143: n/a | I143: n/a | J143: n/a | K143: n/a | L143: n/a | M143: n/a | N143: n/a | O143: n/a | P143: n/a | Q143: n/a | R143: n/a | S143: n/a | T143: 0 | U143: 1.11220636 | V143: 25.75
A144: 4.13788622e-07 | B144: 55.70918261 | C144: 2.733928483 | D144: 0.006678912418 | E144: 0.237212168 | F144: 0.6638192848 | G144: 1.920231776 | H144: n/a | I144: n/a | J144: n/a | K144: n/a | L144: n/a | M144: n/a | N144: n/a | O144: n/a | P144: n/a | Q144: n/a | R144: n/a | S144: n/a | T144: 0 | U144: 1.119321628 | V144: 26
A145: 4.118134861e-07 | B145: 55.82718919 | C145: 2.722382833 | D145: 0.006680808979 | E145: 0.2378460628 | F145: 0.6689754104 | G145: 1.922892412 | H145: n/a | I145: n/a | J145: n/a | K145: n/a | L145: n/a | M145: n/a | N145: n/a | O145: n/a | P145: n/a | Q145: n/a | R145: n/a | S145: n/a | T145: 0 | U145: 1.1263278 | V145: 26.25
A146: 4.098663665e-07 | B146: 55.94644494 | C146: 2.710789111 | D146: 0.006682227277 | E146: 0.2384665767 | F146: 0.674050099 | G146: 1.925525289 | H146: n/a | I146: n/a | J146: n/a | K146: n/a | L146: n/a | M146: n/a | N146: n/a | O146: n/a | P146: n/a | Q146: n/a | R146: n/a | S146: n/a | T146: 0 | U146: 1.133223523 | V146: 26.5
A147: 4.079466071e-07 | B147: 56.06696749 | C147: 2.699147316 | D147: 0.006683167312 | E147: 0.2390737543 | F147: 0.6790419547 | G147: 1.92813091 | H147: n/a | I147: n/a | J147: n/a | K147: n/a | L147: n/a | M147: n/a | N147: n/a | O147: n/a | P147: n/a | Q147: n/a | R147: n/a | S147: n/a | T147: 0 | U147: 1.14000745 | V147: 26.75
A148: 4.060535732e-07 | B148: 56.18877486 | C148: 2.687457448 | D148: 0.006683629083 | E148: 0.2396676373 | F148: 0.6839495944 | G148: 1.930709768 | H148: n/a | I148: n/a | J148: n/a | K148: n/a | L148: n/a | M148: n/a | N148: n/a | O148: n/a | P148: n/a | Q148: n/a | R148: n/a | S148: n/a | T148: 0 | U148: 1.146678243 | V148: 27
A149: 4.041866504e-07 | B149: 56.31188544 | C149: 2.675719507 | D149: 0.00668361259 | E149: 0.2402482649 | F149: 0.688771647 | G149: 1.933262343 | H149: n/a | I149: n/a | J149: n/a | K149: n/a | L149: n/a | M149: n/a | N149: n/a | O149: n/a | P149: n/a | Q149: n/a | R149: n/a | S149: n/a | T149: 0 | U149: 1.153234571 | V149: 27.25
A150: 4.023452437e-07 | B150: 56.43631801 | C150: 2.663933494 | D150: 0.006683117834 | E150: 0.2408156738 | F150: 0.6935067545 | G150: 1.935789101 | H150: n/a | I150: n/a | J150: n/a | K150: n/a | L150: n/a | M150: n/a | N150: n/a | O150: n/a | P150: n/a | Q150: n/a | R150: n/a | S150: n/a | T150: 0 | U150: 1.159675111 | V150: 27.5
A151: 4.005287774e-07 | B151: 56.56209174 | C151: 2.652099408 | D151: 0.006682144815 | E151: 0.2413698981 | F151: 0.6981535713 | G151: 1.938290496 | H151: n/a | I151: n/a | J151: n/a | K151: n/a | L151: n/a | M151: n/a | N151: n/a | O151: n/a | P151: n/a | Q151: n/a | R151: n/a | S151: n/a | T151: 0 | U151: 1.165998551 | V151: 27.75
A152: 3.987366933e-07 | B152: 56.68922622 | C152: 2.640217249 | D152: 0.006680693533 | E152: 0.2419109694 | F152: 0.7027107651 | G152: 1.940766973 | H152: n/a | I152: n/a | J152: n/a | K152: n/a | L152: n/a | M152: n/a | N152: n/a | O152: n/a | P152: n/a | Q152: n/a | R152: n/a | S152: n/a | T152: 0 | U152: 1.172203585 | V152: 28
A153: 3.969684509e-07 | B153: 56.81774146 | C153: 2.628287017 | D153: 0.006678763987 | E153: 0.2424389169 | F153: 0.7071770165 | G153: 1.943218964 | H153: n/a | I153: n/a | J153: n/a | K153: n/a | L153: n/a | M153: n/a | N153: n/a | O153: n/a | P153: n/a | Q153: n/a | R153: n/a | S153: n/a | T153: 0 | U153: 1.178288917 | V153: 28.25
A154: 3.952235262e-07 | B154: 56.9476579 | C154: 2.616308713 | D154: 0.006676356178 | E154: 0.2429537673 | F154: 0.7115510197 | G154: 1.945646891 | H154: n/a | I154: n/a | J154: n/a | K154: n/a | L154: n/a | M154: n/a | N154: n/a | O154: n/a | P154: n/a | Q154: n/a | R154: n/a | S154: n/a | T154: 0 | U154: 1.184253262 | V154: 28.5
A155: 3.935014112e-07 | B155: 57.07899641 | C155: 2.604282335 | D155: 0.006673470105 | E155: 0.2434555453 | F155: 0.7158314822 | G155: 1.948051163 | H155: n/a | I155: n/a | J155: n/a | K155: n/a | L155: n/a | M155: n/a | N155: n/a | O155: n/a | P155: n/a | Q155: n/a | R155: n/a | S155: n/a | T155: 0 | U155: 1.19009534 | V155: 28.75
A156: 3.918016131e-07 | B156: 57.21177835 | C156: 2.592207885 | D156: 0.006670105769 | E156: 0.243944273 | F156: 0.7200171252 | G156: 1.950432184 | H156: n/a | I156: n/a | J156: n/a | K156: n/a | L156: n/a | M156: n/a | N156: n/a | O156: n/a | P156: n/a | Q156: n/a | R156: n/a | S156: n/a | T156: 0 | U156: 1.195813886 | V156: 29
A157: 3.901236542e-07 | B157: 57.34602553 | C157: 2.580085362 | D157: 0.00666626317 | E157: 0.2444199702 | F157: 0.724106684 | G157: 1.952790343 | H157: n/a | I157: n/a | J157: n/a | K157: n/a | L157: n/a | M157: n/a | N157: n/a | O157: n/a | P157: n/a | Q157: n/a | R157: n/a | S157: n/a | T157: 0 | U157: 1.201407641 | V157: 29.25
A158: 3.884670707e-07 | B158: 57.48176023 | C158: 2.567914767 | D158: 0.006661942307 | E158: 0.2448826546 | F158: 0.7280989076 | G158: 1.955126024 | H158: n/a | I158: n/a | J158: n/a | K158: n/a | L158: n/a | M158: n/a | N158: n/a | O158: n/a | P158: n/a | Q158: n/a | R158: n/a | S158: n/a | T158: 0 | U158: 1.206875358 | V158: 29.5
A159: 3.868314126e-07 | B159: 57.61900524 | C159: 2.555696098 | D159: 0.006657143181 | E159: 0.2453323416 | F159: 0.7319925595 | G159: 1.957439598 | H159: n/a | I159: n/a | J159: n/a | K159: n/a | L159: n/a | M159: n/a | N159: n/a | O159: n/a | P159: n/a | Q159: n/a | R159: n/a | S159: n/a | T159: 0 | U159: 1.2122158 | V159: 29.75
A160: 3.85216243e-07 | B160: 57.75778387 | C160: 2.543429357 | D160: 0.006651865791 | E160: 0.2457690447 | F160: 0.7357864176 | G160: 1.959731429 | H160: n/a | I160: n/a | J160: n/a | K160: n/a | L160: n/a | M160: n/a | N160: n/a | O160: n/a | P160: n/a | Q160: n/a | R160: n/a | S160: n/a | T160: 0 | U160: 1.217427739 | V160: 30

Sheet Material References
B2: Megtron 6 | C2: Dk | D2: Df
B3: 100000000 | C3: 3.67 | D3: 0.0039
B4: 1000000000 | C4: 3.65 | D4: 0.004
B5: 2000000000 | C5: 3.59 | D5: 0.0043
B6: 5000000000 | C6: 3.576 | D6: 0.0049
B7: 10000000000 | C7: 3.3494 | D7: 0.0055
B8: 20000000000 | C8: 3 | D8: 0.0065
B10: Nelco 4000-13SI | C10: Dk | D10: Df
B11: 100000000 | C11: 3.6 | D11: 0.0092
B12: 1000000000 | C12: 3.52 | D12: 0.0115
B13: 2000000000 | C13: 3.49 | D13: 0.0108
B14: 5000000000 | C14: 3.46 | D14: 0.011
B15: 10000000000 | C15: 3.44 | D15: 0.0112
B16: 20000000000 | C16: 3.43 | D16: 0.0114
B18: Improved FR4 | C18: Dk | D18: Df
B19: 100000000 | C19: 3.6 | D19: 0.0092
B20: 1000000000 | C20: 3.6 | D20: 0.0092
B21: 2000000000 | C21: 3.5 | D21: 0.0115
B22: 5000000000 | C22: 3.5 | D22: 0.0115
B23: 10000000000 | C23: 3.4 | D23: 0.0125
B24: 20000000000 | C24: 3.2 | D24: 0.014

Sheet KR Spec
A1: b1 | B1: 2e-05 | C1: b2 | D1: 1.1e-10 | E1: b3 | F1: 3.2e-20 | G1: b4 | H1: -1.2e-30
A2: F1 | B2: 1000000000 | C2: F2 | D2: 6000000000 | E2: Fa | F2: 100000000 | G2: Fb | H2: 5156250000 | I2: fmin | J2: 50000000 | K2: fmax | L2: 15000000000
A3: KR MAXIMUM INSERTION LOSS
A4: Freq | B4: Freq (GHz) | C4: Fitted Attenuation | D4: Insertion Loss
A5: 10000000 | B5: =A5*0.000000001 -> 0.01 | C5: =20 * LOG(EXP(1)) * ($B$1*SQRT(A5) + $D$1*A5 + $F$1*(A5^2) + $H$1*(A5^3)) -> 0.5589261582 | D5: =IF(A5<$J$2,,IF(A5<$D$2,C5+0.8+0.0000000002*A5,IF(A5<$L$2,C5+0.8+0.0000000002*$D$2+0.00000001*(A5-$D$2),))) -> 0
A6: 50000000 | B6: =A6*0.000000001 -> 0.05 | C6: =20 * LOG(EXP(1)) * ($B$1*SQRT(A6) + $D$1*A6 + $F$1*(A6^2) + $H$1*(A6^3)) -> 1.276836254 | D6: 2.086836254
A7: 100000000 | B7: 0.1 | C7: 1.835491775 | D7: 2.655491775
A8: 150000000 | B8: 0.15 | C8: 2.277135599 | D8: 3.107135599
A9: 200000000 | B9: 0.2 | C9: 2.658864712 | D9: 3.498864712
A10: 250000000 | B10: 0.25 | C10: 3.00279036 | D10: 3.85279036
A11: 500000000 | B11: 0.5 | C11: 4.430356099 | D11: 5.330356099
A12: 750000000 | B12: 0.75 | C12: 5.625992364 | D12: 6.575992364
A13: 1000000000 | B13: 1 | C13: 6.716412213 | D13: 7.716412213
A14: 1250000000 | B14: 1.25 | C14: 7.750098217 | D14: 8.800098217
A15: 1500000000 | B15: 1.5 | C15: 8.751439174 | D15: 9.851439174
A16: 1750000000 | B16: 1.75 | C16: 9.734526467 | D16: 10.88452647
A17: 2000000000 | B17: 2 | C17: 10.70820092 | D17: 11.90820092
A18: 2250000000 | B18: 2.25 | C18: 11.67830498 | D18: 12.92830498
A19: 2500000000 | B19: 2.5 | C19: 12.64882679 | D19: 13.94882679
A20: 2750000000 | B20: 2.75 | C20: 13.62253758 | D20: 14.97253758
A21: 3000000000 | B21: 3 | C21: 14.60137235 | D21: 16.00137235
A22: 3250000000 | B22: 3.25 | C22: 15.58666979 | D22: 17.03666979
A23: 3500000000 | B23: 3.5 | C23: 16.57933044 | D23: 18.07933044
A24: 3750000000 | B24: 3.75 | C24: 17.57992465 | D24: 19.12992465
A25: 4000000000 | B25: 4 | C25: 18.58876852 | D25: 20.18876852
A26: 4250000000 | B26: 4.25 | C26: 19.60597884 | D26: 21.25597884
A27: 4500000000 | B27: 4.5 | C27: 20.63151363 | D27: 22.33151363
A28: 4750000000 | B28: 4.75 | C28: 21.66520258 | D28: 23.41520258
A29: 5000000000 | B29: 5 | C29: 22.70677049 | D29: 24.50677049
A30: 5250000000 | B30: 5.25 | C30: 23.75585539 | D30: 25.60585539
A31: 5500000000 | B31: 5.5 | C31: 24.81202285 | D31: 26.71202285
A32: 5750000000 | B32: 5.75 | C32: 25.87477742 | D32: 27.82477742
A33: 6000000000 | B33: 6 | C33: 26.9435718 | D33: 28.9435718
A34: 6250000000 | B34: 6.25 | C34: 28.01781432 | D34: 32.51781432
A35: 6500000000 | B35: 6.5 | C35: 29.09687516 | D35: 36.09687516
A36: 6750000000 | B36: 6.75 | C36: 30.18009135 | D36: 39.68009135
A37: 7000000000 | B37: 7 | C37: 31.26677111 | D37: 43.26677111
A38: 7250000000 | B38: 7.25 | C38: 32.35619737 | D38: 46.85619737
A39: 7500000000 | B39: 7.5 | C39: 33.44763083 | D39: 50.44763083
A40: 7750000000 | B40: 7.75 | C40: 34.54031252 | D40: 54.04031252
A41: 8000000000 | B41: 8 | C41: 35.63346601 | D41: 57.63346601
A42: 8250000000 | B42: 8.25 | C42: 36.72629928 | D42: 61.22629928
A43: 8500000000 | B43: 8.5 | C43: 37.81800642 | D43: 64.81800642
A44: 8750000000 | B44: 8.75 | C44: 38.90776899 | D44: 68.40776899
A45: 9000000000 | B45: 9 | C45: 39.99475728 | D45: 71.99475728
A46: 9250000000 | B46: 9.25 | C46: 41.07813145 | D46: 75.57813145
A47: 9500000000 | B47: 9.5 | C47: 42.15704239 | D47: 79.15704239
A48: 9750000000 | B48: 9.75 | C48: 43.23063266 | D48: 82.73063266
A49: 10000000000 | B49: 10 | C49: 44.29803715 | D49: 86.29803715
A50: 10250000000 | B50: 10.25 | C50: 45.35838384 | D50: 89.85838384
A51: 10500000000 | B51: 10.5 | C51: 46.41079428 | D51: 93.41079428
A52: 10750000000 | B52: 10.75 | C52: 47.45438422 | D52: 96.95438422
A53: 11000000000 | B53: 11 | C53: 48.48826402 | D53: 100.488264
A54: 11250000000 | B54: 11.25 | C54: 49.5115391 | D54: 104.0115391
A55: 11500000000 | B55: 11.5 | C55: 50.52331031 | D55: 107.5233103
A56: 11750000000 | B56: 11.75 | C56: 51.52267429 | D56: 111.0226743
A57: 12000000000 | B57: 12 | C57: 52.50872377 | D57: 114.5087238
A58: 12250000000 | B58: 12.25 | C58: 53.48054785 | D58: 117.9805478
A59: 12500000000 | B59: 12.5 | C59: 54.43723228 | D59: 121.4372323
A60: 12750000000 | B60: 12.75 | C60: 55.37785967 | D60: 124.8778597
A61: 13000000000 | B61: 13 | C61: 56.30150972 | D61: 128.3015097
A62: 13250000000 | B62: 13.25 | C62: 57.20725941 | D62: 131.7072594
A63: 13500000000 | B63: 13.5 | C63: 58.09418317 | D63: 135.0941832
A64: 13750000000 | B64: 13.75 | C64: 58.96135305 | D64: 138.4613531
A65: 14000000000 | B65: 14 | C65: 59.80783889 | D65: 141.8078389
A66: 14250000000 | B66: 14.25 | C66: 60.63270842 | D66: 145.1327084
A67: 14500000000 | B67: 14.5 | C67: 61.43502742 | D67: 148.4350274
A68: 14750000000 | B68: 14.75 | C68: 62.21385982 | D68: 151.7138598
A69: 15000000000 | B69: 15 | C69: =20 * LOG(EXP(1)) * ($B$1*SQRT(A69) + $D$1*A69 + $F$1*(A69^2) + $H$1*(A69^3)) -> 62.96826784 | D69: =IF(A69<$J$2,,IF(A69<$D$2,C69+0.8+0.0000000002*A69,IF(A69<$L$2,C69+0.8+0.0000000002*$D$2+0.00000001*(A69-$D$2),))) -> 0
A70: 15250000000 | B70: =A70*0.000000001 -> 15.25 | C70: 63.69731203 | D70: 0
A71: 15500000000 | B71: 15.5 | C71: 64.40005142 | D71: 0
A72: 15750000000 | B72: 15.75 | C72: 65.07554359 | D72: 0
A73: 16000000000 | B73: 16 | C73: 65.72284474 | D73: 0
A74: 16250000000 | B74: 16.25 | C74: 66.34100976 | D74: 0
A75: 16500000000 | B75: 16.5 | C75: 66.92909234 | D75: 0
A76: 16750000000 | B76: 16.75 | C76: 67.48614498 | D76: 0
A77: 17000000000 | B77: 17 | C77: 68.01121909 | D77: 0
A78: 17250000000 | B78: 17.25 | C78: 68.50336503 | D78: 0
A79: 17500000000 | B79: 17.5 | C79: 68.96163217 | D79: 0
A80: 17750000000 | B80: 17.75 | C80: 69.38506892 | D80: 0
A81: 18000000000 | B81: 18 | C81: 69.77272282 | D81: 0
A82: 18250000000 | B82: 18.25 | C82: 70.12364053 | D82: 0
A83: 18500000000 | B83: 18.5 | C83: 70.4368679 | D83: 0
A84: 18750000000 | B84: 18.75 | C84: 70.71145003 | D84: 0
A85: 19000000000 | B85: 19 | C85: 70.94643125 | D85: 0
A86: 19250000000 | B86: 19.25 | C86: 71.14085521 | D86: 0
A87: 19500000000 | B87: 19.5 | C87: 71.29376485 | D87: 0
A88: 19750000000 | B88: 19.75 | C88: 71.40420252 | D88: 0
A89: 20000000000 | B89: 20 | C89: 71.4712099 | D89: 0
A90: 20250000000 | B90: 20.25 | C90: 71.49382813 | D90: 0
A91: 20500000000 | B91: 20.5 | C91: 71.47109775 | D91: 0
A92: 20750000000 | B92: 20.75 | C92: 71.40205878 | D92: 0
A93: 21000000000 | B93: 21 | C93: 71.28575073 | D93: 0
A94: 21250000000 | B94: 21.25 | C94: 71.12121261 | D94: 0
A95: 21500000000 | B95: 21.5 | C95: 70.90748294 | D95: 0
A96: 21750000000 | B96: 21.75 | C96: 70.6435998 | D96: 0
A97: 22000000000 | B97: 22 | C97: 70.32860084 | D97: 0
A98: 22250000000 | B98: 22.25 | C98: 69.96152327 | D98: 0
A99: 22500000000 | B99: 22.5 | C99: 69.54140391 | D99: 0
A100: 22750000000 | B100: 22.75 | C100: 69.06727921 | D100: 0
A101: 23000000000 | B101: 23 | C101: 68.5381852 | D101: 0
A102: 23250000000 | B102: 23.25 | C102: 67.95315761 | D102: 0
A103: 23500000000 | B103: 23.5 | C103: 67.31123177 | D103: 0
A104: 23750000000 | B104: 23.75 | C104: 66.61144272 | D104: 0
A105: 24000000000 | B105: 24 | C105: 65.85282516 | D105: 0
A106: 24250000000 | B106: 24.25 | C106: 65.03441348 | D106: 0
A107: 24500000000 | B107: 24.5 | C107: 64.15524178 | D107: 0
A108: 24750000000 | B108: 24.75 | C108: 63.21434388 | D108: 0
A109: 25000000000 | B109: 25 | C109: 62.21075331 | D109: 0
A110: 25250000000 | B110: 25.25 | C110: 61.14350334 | D110: 0
A111: 25500000000 | B111: 25.5 | C111: 60.01162698 | D111: 0
A112: 25750000000 | B112: 25.75 | C112: 58.81415699 | D112: 0
A113: 26000000000 | B113: 26 | C113: 57.5501259 | D113: 0
A114: 26250000000 | B114: 26.25 | C114: 56.21856598 | D114: 0
A115: 26500000000 | B115: 26.5 | C115: 54.81850932 | D115: 0
A116: 26750000000 | B116: 26.75 | C116: 53.34898776 | D116: 0
A117: 27000000000 | B117: 27 | C117: 51.80903293 | D117: 0
A118: 27250000000 | B118: 27.25 | C118: 50.19767627 | D118: 0
A119: 27500000000 | B119: 27.5 | C119: 48.51394902 | D119: 0
A120: 27750000000 | B120: 27.75 | C120: 46.75688222 | D120: 0
A121: 28000000000 | B121: 28 | C121: 44.92550674 | D121: 0
A122: 28250000000 | B122: 28.25 | C122: 43.01885327 | D122: 0
A123: 28500000000 | B123: 28.5 | C123: 41.03595231 | D123: 0
A124: 28750000000 | B124: 28.75 | C124: 38.97583421 | D124: 0
A125: 29000000000 | B125: 29 | C125: 36.83752914 | D125: 0
A126: 29250000000 | B126: 29.25 | C126: 34.62006714 | D126: 0
A127: 29500000000 | B127: 29.5 | C127: 32.32247806 | D127: 0
A128: 29750000000 | B128: 29.75 | C128: 29.94379163 | D128: 0
A129: 30000000000 | B129: 30 | C129: 27.48303743 | D129: 0
